Cogmind - Beta 12 @@@ ROGUE MODE // 2023.10.13 @ 23:49:06 Player: Juan Result: Destroyed by YI-UF0 with YI-UF0's Doublenader Performance ------------- Evolutions (0) 0 Regions Visited (2) 400 Robots Destroyed (10) 50 Value Destroyed (209) 209 Prototype IDs (0) 0 Alien Tech Used (0) 0 Bonus (0) 0 TOTAL SCORE: 659 Bonus ------- None Cogmind --------- Core Integrity 0/250 Matter 300/300 Energy 100/100 System Corruption 0% Temperature Cool (0) Movement Core (350) Ox6 Location -10/Mines Parts ------- > --- POWER (1) -------- (None) > --- PROPULSION (2) --- (None) > --- UTILITY (2) ------ Large Storage Unit > --- WEAPON (2) ------- (None) > --- INVENTORY (15) --- Ion Engine Wheel Wheel Peak State ------------ > --- POWER ------------ Light Nuclear Core > --- PROPULSION ------- Aluminum Leg Aluminum Leg > --- UTILITY ---------- Large Storage Unit Terrain Scanner > --- WEAPON ----------- Small Laser Light Assault Rifle > --- INVENTORY -------- Ion Engine Wheel Wheel [Rating: 9] Favorites ----------- Power Light Nuclear Core Engine Light Ion Engine Power Core Light Nuclear Core Propulsion Aluminum Leg Leg Aluminum Leg Utility Large Storage Unit Device Terrain Scanner Storage Large Storage Unit Weapon Mining Laser Energy Gun Small Laser Ballistic Gun Light Assault Rifle Special Weapon Mining Laser Build | -11 -10 -10 ------- Run | Jun Mat Min Slots Evolved . | . . . Power . | . . . Propulsion . | . . . Utility . | . . . Weapon . | . . . Parts Attached 18 | 6 8 4 Power 3 | 1 2 . Engine 2 | 1 1 . Core 1 | . 1 . Reactor . | . . . Propulsion 4 | 3 1 . Treads . | . . . Leg 4 | 3 1 . Wheel . | . . . Hover . | . . . Flight . | . . . Utility 3 | . 2 1 Device 2 | . 1 1 Storage 1 | . 1 . Processor . | . . . Hackware . | . . . Protection . | . . . Artifact . | . . . Weapon 8 | 2 3 3 Energy Gun 3 | 1 1 1 Energy Cannon . | . . . Ballistic Gun 2 | 1 . 1 Ballistic Cannon . | . . . Launcher . | . . . Special Weapon 3 | . 2 1 Impact Weapon . | . . . Slashing Weapon . | . . . Piercing Weapon . | . . . Special Melee Weapon . | . . . Unidentified Prototypes . | . . . Parts Lost 10 | . 1 9 Power 1 | . . 1 Propulsion 2 | . . 2 Utility 1 | . . 1 Weapon 6 | . 1 5 Highest Loss Streak 5 | . 1 5 To Critical Strikes . | . . . Average Slot Usage (%) 80 | . 70 92 Engine 1 | . 2 . Core 12 | . 11 13 Leg 25 | . 28 23 Device 6 | . . 12 Storage 9 | . 5 14 Energy Gun 8 | . 11 3 Ballistic Gun 6 | . 8 3 Special Weapon 9 | . . 19 Naked Turns . | . . . Heaviest Build 28 | 6 28 28 Greatest Support 20 | 20 20 20 Greatest Overweight (x) 6 | . 1 6 Average Overweight (x) . | . . 1 Largest Inventory Capacity 15 | 5 15 15 Average Capacity 11 | 5 9 15 Most Carried 8 | 5 8 7 Average Carried 4 | 3 4 5 Final Capacity 15 | 5 15 15 Final Carried 7 | 5 7 3 Class Distribution -------------------- 100% | Mutant Dominant Class ---------------- Mutant | -10/Materials Mutant | -10/Mines Resources | -11 -10 -10 ----------- Run | Jun Mat Min Matter Collected 385 | 244 80 61 Remotely . | . . . Salvage Created 220 | 37 183 . Parts 14 | 3 11 . Haulers Intercepted . | . . . Recyclers Shooed . | . . . Parts Field Recycled . | . . . Retrieved Matter . | . . . Parts Self-Destructed . | . . . Prevented . | . . . Kills | -11 -10 -10 ------- Run | Jun Mat Min Combat Hostiles Destroyed 10 | 1 6 3 Guns 8 | 1 6 1 Cannons 2 | . . 2 Classes Destroyed 2 | 1 1 . Swarmer 6 | . 3 3 Grunt 4 | 1 3 . Best Kill Streak 3 | 1 3 2 Combat Bots Only 3 | 1 3 2 Max Kills in Single Turn 1 | 1 1 1 Gunslinging . | . . . Exploded . | . . . Melee . | . . . Uniques/NPCs Destroyed . | . . . Combat | -11 -10 -10 -------- Run | Jun Mat Min Damage Taken 955 | 79 274 602 Core 255 | 12 72 171 Absorbed by Shields . | . . . Core Remaining (%) 95 | 95 . . Volleys Fired 40 | 5 27 8 Largest 2 | 2 2 2 Hottest 200 | 60 60 200 Shots Fired 63 | 10 41 12 Gun 53 | 10 41 2 Cannon . | . . . Launcher . | . . . Special 10 | . . 10 Kinetic 29 | 5 23 1 Thermal 20 | . 9 11 Explosive . | . . . Electromagnetic 14 | 5 9 . Robot Hit Streak 8 | 5 8 1 Robot Miss Streak 3 | 2 2 3 Penetration Max . | . . . Secondary Targets 1 | . 1 . Max Gunslinging Chain 1 | . 1 . Shots Hit Robots 35 | 5 26 4 Core Hits 17 | 2 12 3 Critical Kills . | . . . Critical Parts Destroyed . | . . . Critical Strikes . | . . . Melee Attacks . | . . . Impact . | . . . Slashing . | . . . Piercing . | . . . Sneak Attacks . | . . . Combat Hostiles . | . . . Follow-up Attacks . | . . . Damage Inflicted 367 | 40 245 82 Guns 295 | 40 245 10 Cannons . | . . . Explosions . | . . . Melee . | . . . Ramming . | . . . Kinetic 131 | 15 116 . Thermal 135 | . 53 82 Explosive . | . . . Electromagnetic 101 | 25 76 . Impact . | . . . Slashing . | . . . Piercing . | . . . Highest Corruption . | . . . Average Corruption . | . . . Corruption Purged . | . . . Corruption Blocked . | . . . Overload Shots . | . . . Overflow Damage . | . . . Projectiles . | . . . Explosions . | . . . Melee . | . . . Knockbacks . | . . . Impact . | . . . Kinetic . | . . . Secondary . | . . . Self-Inflicted Damage . | . . . Shots . | . . . Rammed . | . . . Targets Rammed . | . . . Kicked . | . . . Crushed . | . . . Highest Temperature 252 | 32 66 252 Average Temperature 65 | 17 23 121 Received Heat Transfer 186 | 42 144 . Siege Activations . | . . . Robots Corrupted . | . . . Combat Hostiles . | . . . Parts Fried . | . . . Impact Corruptions . | . . . Robots Melted . | . . . Combat Hostiles . | . . . Parts Melted 1 | . . 1 Heat Transferred 300 | . 125 175 Parts Sabotaged . | . . . Parts Stolen . | . . . Parts Stripped . | . . . Power Chain Reactions . | . . . Missiles Intercepted . | . . . Alert | -11 -10 -10 ------- Run | Jun Mat Min Peak Influence 215 | 20 215 60 Initial 17 | . 13 17 Average 65 | 6 123 17 Maximum Alert Level 1 | . 1 . Low Security (%) 92 | 100 84 100 Level 1 7 | . 15 . Level 2 . | . . . Level 3 . | . . . Level 4 . | . . . Level 5 . | . . . High Security . | . . . Max Security . | . . . Squads Dispatched 1 | . 1 . Investigation . | . . . Extermination . | . . . Reinforcement 1 | . 1 . Assault . | . . . Garrison . | . . . Intercept . | . . . Searches Triggered . | . . . Construction Impeded . | . . . Haulers Reinforced . | . . . Active Scanning Responses . | . . . Cargo Convoy Interrupts . | . . . Stealth | -11 -10 -10 --------- Run | Jun Mat Min Distress Signals 1 | . 1 . Communications Jammed . | . . . Distress Signals . | . . . Times Spotted 18 | 1 13 4 Peak Tracking Total 5 | 1 5 3 Tactical Retreats 1 | . 1 . Traps | -11 -10 -10 ------- Run | Jun Mat Min Traps Triggered . | . . . Indirectly . | . . . Trap Hack Attempts . | . . . Triggered . | . . . Disarmed . | . . . Reprogrammed . | . . . Reused . | . . . Traps Extracted . | . . . Installed . | . . . Triggered . | . . . Machines | -11 -10 -10 ---------- Run | Jun Mat Min Machines Disabled . | . . . Max in Single Turn . | . . . Machines Repaired . | . . . Machines Sabotaged . | . . . Overloaded Fab Kills . | . . . Hacking | -11 -10 -10 --------- Run | Jun Mat Min Machines Accessed 1 | . 1 . Terminals 1 | . 1 . Fabricators . | . . . Repair Stations . | . . . Recycling Units . | . . . Scanalyzers . | . . . Garrison Access . | . . . Total Hacks 1 | . 1 . Successful 1 | . 1 . Failed . | . . . Catastrophic . | . . . Database Lockouts . | . . . Manual . | . . . Terminals 1 | . 1 . Fabricators . | . . . Repair Stations . | . . . Recycling Units . | . . . Scanalyzers . | . . . Garrison Access . | . . . Terminal Hacks 1 | . 1 . Record 1 | . 1 . Fabricator Hacks . | . . . Repair Station Hacks . | . . . Recycling Unit Hacks . | . . . Scanalyzer . | . . . Garrison Access Hacks . | . . . Unauthorized Hacks . | . . . Terminals . | . . . Fabricators . | . . . Repair Stations . | . . . Recycling Units . | . . . Scanalyzers . | . . . Garrison Access . | . . . Data Cores Recovered . | . . . Used . | . . . Hacking Detections 1 | . 1 . Full Trace Events . | . . . Feedback Events . | . . . Feedback Blocked . | . . . Robot Schematics Acquired . | . . . Robots Built . | . . . Authchips . | . . . Time . | . . . Total Robot Build Rating . | . . . Part Schematics Acquired . | . . . Parts Built . | . . . Authchips . | . . . Time . | . . . Total Part Build Rating . | . . . Parts Repaired . | . . . Time . | . . . Parts Recycled . | . . . Recycled Matter . | . . . Retrieved Matter . | . . . Retrieved Components . | . . . Parts Scanalyzed . | . . . Part Schematics Acquired . | . . . Parts Damaged . | . . . Bothacking | -11 -10 -10 ------------ Run | Jun Mat Min Used RIF Installer . | . . . Robots Hacked . | . . . Non-combat . | . . . Combat . | . . . Robot Hacks Applied . | . . . Relay Couplers Released . | . . . Fabnet Peak Effective % . | . . . Robots Rewired . | . . . Allies Hacked . | . . . Hacks Repelled . | . . . Allies | -11 -10 -10 -------- Run | Jun Mat Min Total Allies . | . . . Largest Group . | . . . Highest-Rated Group . | . . . Highest-Rated Ally . | . . . Total Orders . | . . . Ally Attacks . | . . . Total Damage . | . . . Kills . | . . . Allies Corrupted . | . . . Allies Melted . | . . . Intel | -11 -10 -10 ------- Run | Jun Mat Min Robot Analysis Total . | . . . Derelict Logs Recovered . | . . . Drone Launches . | . . . Drone Recoveries . | . . . Exploration | -11 -10 -10 ------------- Run | Jun Mat Min Turns Passed 1232 | 134 570 528 Spaces Moved 603 | 100 271 232 Core 24 | 23 . 1 Treads . | . . . Legs 579 | 77 271 231 Wheels . | . . . Hover . | . . . Flight . | . . . Fastest Speed 50 | 50 120 190 Average Speed 164 | 103 150 208 Slowest Speed 350 | 120 190 350 Overloaded Moves . | . . . Propulsion Burnouts . | . . . Robots Hopped . | . . . Cave-ins Triggered . | . . . Exploration Rate (%) 29 | 7 36 44 Regions Visited 2 Branch Regions 1 Pre-discovered Areas . | . . . Known Exits Taken . | . . . Unknown Exits Taken 2 | 1 1 . Scrap Searched . | . . . Spaces Dug . | . . . Terrain Destroyed 3 | . . 3 Melee . | . . . Projectile 3 | . . 3 AOE . | . . . Terrain Rammed . | . . . Walls Destroyed . | . . . Machines Disabled . | . . . Actions | -11 -10 -10 --------- Run | Jun Mat Min Total 767 | 121 400 246 Wait 84 | . 82 2 Move 601 | 99 270 232 Hop . | . . . Pick Up 16 | 10 6 . Fast Attach . | . . . Attach 15 | 6 5 4 Detach 4 | 1 3 . Swap 3 | . 3 . Drop 4 | . 4 . Fire 40 | 5 27 8 Melee . | . . . Ram . | . . . Kick . | . . . Crush . | . . . Escape Stasis . | . . . Rewire . | . . . Trap . | . . . Miscellaneous . | . . . Route ------- -11/Junkyard -10/Materials (discovered 2 exits: [*Mat] / [*Min]) -10/Mines (discovered 1 exit: [*Exi]) History --------- Turn | Location | Event 2 | -11/Junkyard | Met Revision 17 66 | -11/Junkyard | Discovered new exit (range 8) 135 | -11/Junkyard | Entered Materials 319 | -10/Materials | Build established: Mutant 424 | -10/Materials | Discovered new exit (range 16) 568 | -10/Materials | Discovered new exit (range 14) 705 | -10/Materials | Entered Mines 807 | -10/Mines | Deemed a non-threat by the Exiles lab entrance 809 | -10/Mines | Discovered new exit (range 5) 1107 | -10/Mines | Lost 4 parts (1n3w) 1228 | -10/Mines | Core integrity fell below 50% 1232 | -10/Mines | Core integrity fell below 20% 1233 | -10/Mines | Destroyed by YI-UF0 with YI-UF0's Doublenader Last Messages --------------- S-10 Pest destroyed. Mining Laser destroyed. Aluminum Leg destroyed. S-10 Pest destroyed. K-01 Serf destroyed. R-06 Scavenger collects Wheel. The unstable cave ceiling collapses. R-06 Scavenger collects Med. Matter Pod. R-06 Scavenger destroyed. Acquired 61 matter. The unstable cave ceiling collapses. YI-UF0 mumbles something. Lgt. Nuclear Core destroyed. YI-UF0 mumbles something. Lgt. Assault Rifle destroyed. Aluminum Leg destroyed. Terrain Scanner destroyed. Sml. Laser destroyed. The unstable cave ceiling collapses. [Achievement: First Step to Greatness] Map ----- +----------------------------------------------------+ | | | ????????????????????????????????#??????????????#?? | | ??????????###??????????????????????????????##????? | | ?????????## ##?????????????????????????#??????#?? | | #?????#??# ##???????????????????#????#??#?????# | | ?????????# ##???????????????????#?#?#?#####??# | | ?#???????## #??????????????????#??#####"###### | | ??????????# #???????????????????#?# | | ??????##### #??????????????#??????# | | ??????# #?????????????????????# "#"###### | | ####### ### #??????#?????#?#?????# ####?#??# | | # #?## #??????#??###?#??#???# #???#???# | | # ##### #??## #??????????#??#?#?##?# #?#?????? | | # #???# #???## #?#?????????#???#?#??# #???#???? | | # #???# #?????# #????????????#???????# #?#??#??# | | #???# #?????? #???#??????????????#?# #?#??#### | | ###???# #??????# #?#???????????###????# ##??### | | #??##?# #????##?##????????????????#???# #??## | | #?????# #????#?????????######?####????# #?## # | | ????#?# #?#????????##??# ### ##?### ### ## | | ??????# #######????# ### ### ##? | | ??????# #?##### # ! ##? | | ????#?###### ### ## #?? | | ???#???????# ## # # #?? | | ###??#???#?# ## #?? | | #???####?# ## @ # ## ### #?? | | #??## """ ###########?#### #?? | | #?## """ ##???????#?????# #?? | | ### = """ #?????#????????# #?? | | ## #### ##??????#???????# #?# | | # ##??# #####???????????????# #?? | | ##???## #??????#??????????? ?? | | ##?????# #???????#??????????? ?? | | ##???#?# ###?????????????????? ? | | ## #???#??# ##?????????????????????" """? | | ?## #?#???? #????????#??????????????" """? | | ??## ##?????# g ??????#???????#?????????? ???? | | ???####?????#? ?????#??????????????????? ???? | | #??#??????????## ?????????????????????????????? | | #??????????????# #?????????????????????????????? | | ?#????#??????#? #?????????????????????????????? | | ??????????????? #?????????????????????????????? | | ?????????????? ##?????????????????????????????? | | ??????????????# #???????????????????????????????? | | ??? ??????????## ????????????????????????????????? | | ???????????????# ????????????????????????????????? | | ???????????????? ????????????????????????????????? | | ?????????????????????????????????????????????????? | | ?????????????????????????????????????????????????? | | ?????????????????????????????????????????????????? | +----------------------------------------------------+ Best States ------------- Heat Dissipation 25 Energy Generation 14 Energy Capacity 160 Matter Stores 300 Matter Capacity 300 Sight Range 16 Terrain Scan Range 14 Terrain Scan Density 10 Evasion (%) 55 Item Schematics ----------------- None Robot Schematics ------------------ None Fabricated ------------ Nothing Alien Tech Used ----------------- None Achievements -------------- First Step to Greatness Challenges ------------ None Game ------ Seed ControlRocketCharger Manual? 0 Play Time 00:21:24 Cumulative 0.6 hours Start 2023.10.13 @ 22:46:17 End 2023.10.13 @ 23:49:06 Sessions 1 Manual Loads 0 Difficulty Rogue Special Mode None Game No. 1 Rogue 1 Adventurer 0 Explorer 0 Win Type - Total 0 Types 0/0/0/0/0/0/0/0/0 Lore% 0 Gallery% 3 Achievement% 2 Wizard Run 0 Options --------- ASCII 0 Keyboard 0 Movement Mouse Keybinds 0 Fullscreen 1 Font 24/Terminus Map View 76x50 Tactical HUD 0 Map Filters NONE Filters NONE Steam 1 RUN: 7cf56157-7ed4-4ba9-addc-e6ae42b2bcdd